fUSD/lending_fUSD_20260622
["ID","MTS","AMOUNT","RATE_DAILY","PERIOD"]
[426053295,1782131544000,-847.85,0.00029315,2]
[426053284,1782131544000,-4341.82,0.00029315,2]
[426053281,1782131544000,-500.0,0.00029315,2]
[426053290,1782131544000,-4113.41,0.00029315,2]
[426053291,1782131544000,-2940.44,0.00029315,2]
[426053294,1782131544000,-354.92649658,0.00029315,2]
[426053299,1782131544000,-849.12,0.00029315,2]
[426053292,1782131544000,-11028.8,0.00029315,2]
[426053289,1782131544000,-500.0,0.00029315,2]
[426053298,1782131544000,-500.0,0.00029315,2]
[426053296,1782131544000,-534.45,0.00029315,2]
[426053270,1782131544000,-405.5,0.00029315,2]
[426053286,1782131544000,-500.0,0.00029315,2]
[426053273,1782131544000,-1838.48,0.00029315,2]
[426053251,1782131544000,-556.95,0.00029315,2]
[426053272,1782131544000,-695.59,0.00029315,2]
[426053247,1782131544000,-3549.98,0.00029315,2]
[426053254,1782131544000,-1158.24,0.00029315,2]
[426053248,1782131544000,-636.95,0.00029315,2]
[426053246,1782131544000,-500.0,0.00029315,2]
[426053255,1782131544000,-519.8,0.00029315,2]
[426053297,1782131544000,-5138.93,0.00029315,2]
[426053252,1782131544000,-784.56,0.00029315,2]
[426053253,1782131544000,-361.2,0.00029315,2]
[426053249,1782131544000,-500.0,0.00029315,2]
[426053250,1782131544000,-500.0,0.00029315,2]
[426053257,1782131544000,-294.15,0.00029315,2]
[426053256,1782131544000,-567.35,0.00029315,2]
[426053259,1782131544000,-546.18,0.00029315,2]
[426053258,1782131544000,-500.0,0.00029315,2]
[426053266,1782131544000,-500.0,0.00029315,2]
[426053260,1782131544000,-500.0,0.00029315,2]
[426053261,1782131544000,-500.0,0.00029315,2]
[426053264,1782131544000,-1271.92,0.00029315,2]
[426053265,1782131544000,-1496.54,0.00029315,2]
[426053262,1782131544000,-500.0,0.00029315,2]
[426053263,1782131544000,-500.0,0.00029315,2]
[426053271,1782131544000,-1362.17,0.00029315,2]
[426053269,1782131544000,-3395.17,0.00029315,2]
[426053268,1782131544000,-500.0,0.00029315,2]
[426053275,1782131544000,-500.0,0.00029315,2]
[426053276,1782131544000,-711.86,0.00029315,2]
[426053302,1782131544000,-500.0,0.00029315,2]
[426053293,1782131544000,-616.23,0.00029315,2]
[426053303,1782131544000,-500.0,0.00029315,2]
[426053332,1782131544000,-6843.28,0.00029315,2]
[426053330,1782131544000,-500.0,0.00029315,2]
[426053334,1782131544000,-1169.7,0.00029315,2]
[426053335,1782131544000,-4492.09,0.00029315,2]
[426053337,1782131544000,-5976.83,0.00029315,2]
[426053336,1782131544000,-6597.51,0.00029315,2]
[426053338,1782131544000,-7004.08,0.00029315,2]
[426053343,1782131544000,-500.0,0.00029315,2]
[426053339,1782131544000,-500.0,0.00029315,2]
[426053340,1782131544000,-500.0,0.00029315,2]
[426053344,1782131544000,-658.07,0.00029315,2]
[426053329,1782131544000,-500.0,0.00029315,2]
[426053342,1782131544000,-9672.86,0.00029315,2]
[426053346,1782131544000,-500.0,0.00029315,2]
[426053347,1782131544000,-262.01,0.00029315,2]
[426053348,1782131544000,-500.0,0.00029315,2]
[426053350,1782131544000,-500.0,0.00029315,2]
[426053349,1782131544000,-1002.58,0.00029315,2]
[426053353,1782131544000,-500.0,0.00029315,2]
[426053355,1782131544000,-500.0,0.00029315,2]
[426053351,1782131544000,-8639.58,0.00029315,2]
[426053354,1782131544000,-500.0,0.00029315,2]
[426053352,1782131544000,-4376.06,0.00029315,2]
[426053300,1782131544000,-1204.89,0.00029315,2]
[426053345,1782131544000,-909.43,0.00029315,2]
[426053333,1782131544000,-4227.56,0.00029315,2]
[426053341,1782131544000,-500.0,0.00029315,2]
[426053328,1782131544000,-500.0,0.00029315,2]
[426053301,1782131544000,-500.0,0.00029315,2]
[426053331,1782131544000,-500.0,0.00029315,2]
[426053305,1782131544000,-8197.77,0.00029315,2]
[426053311,1782131544000,-713.2,0.00029315,2]
[426053306,1782131544000,-500.0,0.00029315,2]
[426053304,1782131544000,-2000.0,0.00029315,2]
[426053308,1782131544000,-500.0,0.00029315,2]
[426053310,1782131544000,-570.0,0.00029315,2]
[426053309,1782131544000,-3373.56,0.00029315,2]
[426053313,1782131544000,-286.5,0.00029315,2]
[426053315,1782131544000,-500.0,0.00029315,2]
[426053314,1782131544000,-500.0,0.00029315,2]
[426053312,1782131544000,-685.72,0.00029315,2]
[426053307,1782131544000,-687.7,0.00029315,2]
[426053316,1782131544000,-557.86,0.00029315,2]
[426053327,1782131544000,-500.0,0.00029315,2]
[426053326,1782131544000,-500.0,0.00029315,2]
[426053325,1782131544000,-500.0,0.00029315,2]
[426053323,1782131544000,-7121.05,0.00029315,2]
[426053322,1782131544000,-1413.15,0.00029315,2]
[426053324,1782131544000,-657.57,0.00029315,2]
[426053317,1782131544000,-591.59,0.00029315,2]
[426053318,1782131544000,-1010.5,0.00029315,2]
[426053319,1782131544000,-500.0,0.00029315,2]
[426053321,1782131544000,-500.0,0.00029315,2]
[426053320,1782131544000,-500.0,0.00029315,2]
[426053394,1782131545000,-777.53,0.00029315,2]
[426053399,1782131545000,-500.0,0.00029315,2]
[426053395,1782131545000,-805.85,0.00029315,2]
[426053391,1782131545000,-500.0,0.00029315,2]
[426053393,1782131545000,-537.51,0.00029315,2]
[426053392,1782131545000,-500.0,0.00029315,2]
[426053397,1782131545000,-500.0,0.00029315,2]
[426053390,1782131545000,-1281.85,0.00029315,2]
[426053386,1782131545000,-500.0,0.00029315,2]
[426053387,1782131545000,-781.2,0.00029315,2]
[426053409,1782131545000,-587.25,0.00029315,2]
[426053396,1782131545000,-500.0,0.00029315,2]
[426053398,1782131545000,-879.74,0.00029315,2]
[426053412,1782131545000,-642.64,0.00029328,30]
[426053400,1782131545000,-1013.21,0.00029315,2]
[426053413,1782131545000,-445.882329,0.00029386,7]
[426053403,1782131545000,-500.0,0.00029315,2]
[426053404,1782131545000,-512.15816442,0.00029315,2]
[426053402,1782131545000,-500.0,0.00029315,2]
[426053405,1782131545000,-500.0,0.00029315,2]
[426053407,1782131545000,-500.0,0.00029315,2]
[426053408,1782131545000,-262.85391597,0.00029315,2]
[426053410,1782131545000,-644.33,0.00029326,30]
[426053406,1782131545000,-984.2,0.00029315,2]
[426053411,1782131545000,-1026.81,0.00029327,30]
[426053388,1782131545000,-554.0,0.00029315,2]
[426053401,1782131545000,-948.85,0.00029315,2]
[426053385,1782131545000,-500.0,0.00029315,2]
[426053367,1782131545000,-500.0,0.00029315,2]
[426053383,1782131545000,-513.61,0.00029315,2]
[426053357,1782131545000,-919.77,0.00029315,2]
[426053356,1782131545000,-8686.62,0.00029315,2]
[426053359,1782131545000,-500.0,0.00029315,2]
[426053358,1782131545000,-300.0,0.00029315,2]
[426053360,1782131545000,-500.0,0.00029315,2]
[426053366,1782131545000,-844.33,0.00029315,2]
[426053362,1782131545000,-500.0,0.00029315,2]
[426053364,1782131545000,-500.0,0.00029315,2]
[426053363,1782131545000,-5625.93,0.00029315,2]
[426053361,1782131545000,-500.0,0.00029315,2]
[426053365,1782131545000,-775.18,0.00029315,2]
[426053368,1782131545000,-500.0,0.00029315,2]
[426053369,1782131545000,-502.29016982,0.00029315,2]
[426053370,1782131545000,-1087.5,0.00029315,2]
[426053375,1782131545000,-2905.9,0.00029315,2]
[426053377,1782131545000,-4175.97,0.00029315,2]
[426053374,1782131545000,-729.92,0.00029315,2]
[426053372,1782131545000,-500.0,0.00029315,2]
[426053376,1782131545000,-2044.4,0.00029315,2]
[426053371,1782131545000,-912.76,0.00029315,2]
[426053378,1782131545000,-500.0,0.00029315,2]
[426053373,1782131545000,-500.0,0.00029315,2]
[426053380,1782131545000,-500.0,0.00029315,2]
[426053379,1782131545000,-255.63413018,0.00029315,2]
[426053389,1782131545000,-500.0,0.00029315,2]
[426053381,1782131545000,-500.0,0.00029315,2]
[426053382,1782131545000,-500.0,0.00029315,2]
[426053384,1782131545000,-895.47,0.00029315,2]
[426053414,1782131545000,-396.585598,0.00029388,7]
[426053429,1782131545000,-8500.0,0.00029463,7]
[426053418,1782131545000,-1073.39758915,0.000294,5]
[426053450,1782131545000,-937.75283355,0.0002957,2]
[426053444,1782131545000,-573.69,0.00029526,2]
[426053445,1782131545000,-644.16,0.00029526,2]
[426053453,1782131545000,-530.352991,0.00029589,2]
[426053452,1782131545000,-1624.05,0.00029589,2]
[426053454,1782131545000,-819.26,0.00029589,2]
[426053455,1782131545000,-585.84,0.00029589,2]
[426053463,1782131545000,-947.67,0.00029589,2]
[426053456,1782131545000,-500.0,0.00029589,2]
[426053458,1782131545000,-444.2766831,0.00029589,2]
[426053457,1782131545000,-500.0,0.00029589,2]
[426053461,1782131545000,-633.7,0.00029589,2]
[426053462,1782131545000,-513.94,0.00029589,2]
[426053459,1782131545000,-680.9,0.00029589,2]
[426053460,1782131545000,-970.83,0.00029589,2]
[426053464,1782131545000,-500.0,0.00029589,2]
[426053473,1782131545000,-500.0,0.00029589,2]
[426053469,1782131545000,-500.0,0.00029589,2]
[426053468,1782131545000,-539.78,0.00029589,2]
[426053471,1782131545000,-1276.25,0.00029589,2]
[426053470,1782131545000,-500.0,0.00029589,2]
[426053474,1782131545000,-500.0,0.00029589,2]
[426053467,1782131545000,-500.0,0.00029589,2]
[426053475,1782131545000,-500.0,0.00029589,2]
[426053465,1782131545000,-500.0,0.00029589,2]
[426053472,1782131545000,-500.0,0.00029589,2]
[426053466,1782131545000,-1724.88,0.00029589,2]
[426053443,1782131545000,-644.33,0.00029526,2]
[426053440,1782131545000,-396.29,0.00029519,2]
[426053416,1782131545000,-188.97,0.000294,2]
[426053442,1782131545000,-185.21,0.00029525,2]
[426053449,1782131545000,-642.64,0.00029547,7]
[426053417,1782131545000,-862.86,0.000294,7]
[426053419,1782131545000,-1078.74753432,0.000294,5]
[426053422,1782131545000,-1031.75061222,0.000294,5]
[426053421,1782131545000,-1055.99725546,0.000294,5]
[426053420,1782131545000,-1028.35842149,0.000294,5]
[426053423,1782131545000,-1133.28231569,0.000294,5]
[426053424,1782131545000,-1040.86671692,0.000294,5]
[426053415,1782131545000,-468.128208,0.00029396,7]
[426053427,1782131545000,-1026.81,0.00029436,30]
[426053438,1782131545000,-396.24,0.00029519,2]
[426053437,1782131545000,-185.14,0.00029519,2]
[426053426,1782131545000,-221.26,0.00029426,2]
[426053425,1782131545000,-1353.91026603,0.000294,5]
[426053430,1782131545000,-285.84,0.00029464,30]
[426053431,1782131545000,-1285.07,0.00029464,30]
[426053448,1782131545000,-644.33,0.00029546,7]
[426053446,1782131545000,-150.0,0.00029534,2]
[426053451,1782131545000,-785.0,0.0002958,2]
[426053439,1782131545000,-185.21,0.00029519,2]
[426053434,1782131545000,-324.65,0.000295,7]
[426053447,1782131545000,-1026.81,0.00029545,30]
[426053441,1782131545000,-185.21,0.00029525,2]
[426053435,1782131545000,-185.12,0.0002951,2]
[426053436,1782131545000,-501.0,0.00029513,4]
[426053432,1782131545000,-928.72,0.00029466,30]
[426053428,1782131545000,-10573.0,0.0002945,10]
[426053433,1782131545000,-5524.29262265,0.000295,2]
[426053514,1782131546000,-515.21,0.00029589,2]
[426053515,1782131546000,-562.32,0.00029589,2]
[426053517,1782131546000,-500.0,0.00029589,2]
[426053518,1782131546000,-500.0,0.00029589,2]
[426053508,1782131546000,-500.0,0.00029589,2]
[426053505,1782131546000,-500.0,0.00029589,2]
[426053506,1782131546000,-614.75,0.00029589,2]
[426053511,1782131546000,-500.0,0.00029589,2]
[426053507,1782131546000,-500.0,0.00029589,2]
[426053510,1782131546000,-1137.32,0.00029589,2]
[426053523,1782131546000,-721.3,0.00029589,2]
[426053509,1782131546000,-1404.94,0.00029589,2]
[426053516,1782131546000,-500.0,0.00029589,2]
[426053526,1782131546000,-678.94,0.00029589,2]
[426053522,1782131546000,-807.35,0.00029589,2]
[426053520,1782131546000,-500.0,0.00029589,2]
[426053524,1782131546000,-500.0,0.00029589,2]
[426053521,1782131546000,-500.0,0.00029589,2]
[426053525,1782131546000,-528.44,0.00029589,2]
[426053527,1782131546000,-501.54,0.00029589,2]
[426053538,1782131546000,-500.0,0.00029589,2]
[426053536,1782131546000,-1255.65,0.00029589,2]
[426053535,1782131546000,-500.0,0.00029589,2]
[426053528,1782131546000,-593.04,0.00029589,2]
[426053537,1782131546000,-500.0,0.00029589,2]
[426053529,1782131546000,-1181.38,0.00029589,2]
[426053501,1782131546000,-500.0,0.00029589,2]
[426053519,1782131546000,-500.0,0.00029589,2]
[426053513,1782131546000,-688.82,0.00029589,2]
[426053490,1782131546000,-661.35,0.00029589,2]
[426053503,1782131546000,-511.5,0.00029589,2]
[426053530,1782131546000,-548.72,0.00029589,2]
[426053476,1782131546000,-666.68,0.00029589,2]
[426053478,1782131546000,-2673.46,0.00029589,2]
[426053488,1782131546000,-1180.24,0.00029589,2]
[426053479,1782131546000,-500.0,0.00029589,2]
[426053480,1782131546000,-244.69247601,0.00029589,2]
[426053481,1782131546000,-755.16,0.00029589,2]
[426053477,1782131546000,-500.0,0.00029589,2]
[426053482,1782131546000,-695.0,0.00029589,2]
[426053486,1782131546000,-557.46,0.00029589,2]
[426053484,1782131546000,-500.0,0.00029589,2]
[426053483,1782131546000,-500.0,0.00029589,2]
[426053487,1782131546000,-500.0,0.00029589,2]
[426053485,1782131546000,-500.51,0.00029589,2]
[426053489,1782131546000,-500.0,0.00029589,2]
[426053496,1782131546000,-500.0,0.00029589,2]
[426053492,1782131546000,-983.84,0.00029589,2]
[426053493,1782131546000,-500.0,0.00029589,2]
[426053495,1782131546000,-500.0,0.00029589,2]
[426053498,1782131546000,-500.0,0.00029589,2]
[426053500,1782131546000,-500.0,0.00029589,2]
[426053491,1782131546000,-739.37,0.00029589,2]
[426053494,1782131546000,-500.0,0.00029589,2]
[426053497,1782131546000,-500.0,0.00029589,2]
[426053499,1782131546000,-714.12,0.00029589,2]
[426053502,1782131546000,-603.87421846,0.00029589,2]
[426053504,1782131546000,-586.89,0.00029589,2]
[426053512,1782131546000,-500.0,0.00029589,2]
[426053532,1782131546000,-691.46,0.00029589,2]
[426053531,1782131546000,-500.0,0.00029589,2]
[426053588,1782131546000,-500.0,0.00029589,2]
[426053570,1782131546000,-500.0,0.00029589,2]
[426053574,1782131546000,-500.0,0.00029589,2]
[426053572,1782131546000,-500.0,0.00029589,2]
[426053567,1782131546000,-786.59,0.00029589,2]
[426053565,1782131546000,-500.0,0.00029589,2]
[426053576,1782131546000,-500.0,0.00029589,2]
[426053586,1782131546000,-500.0,0.00029589,2]
[426053587,1782131546000,-900.89,0.00029589,2]
[426053575,1782131546000,-500.0,0.00029589,2]
[426053577,1782131546000,-500.0,0.00029589,2]
[426053584,1782131546000,-853.2,0.00029589,2]
[426053581,1782131546000,-834.64,0.00029589,2]
[426053583,1782131546000,-510.33,0.00029589,2]
[426053582,1782131546000,-790.49,0.00029589,2]
[426053579,1782131546000,-790.07,0.00029589,2]
[426053580,1782131546000,-504.09,0.00029589,2]
[426053585,1782131546000,-564.32,0.00029589,2]
[426053591,1782131546000,-500.0,0.00029589,2]
[426053597,1782131546000,-992.54,0.00029589,2]
[426053594,1782131546000,-715.39,0.00029589,2]
[426053593,1782131546000,-500.0,0.00029589,2]
[426053592,1782131546000,-500.0,0.00029589,2]
[426053595,1782131546000,-636.73,0.00029589,2]
[426053589,1782131546000,-500.0,0.00029589,2]
[426053533,1782131546000,-725.12,0.00029589,2]
[426053590,1782131546000,-502.17734878,0.00029589,2]
[426053596,1782131546000,-702.96,0.00029589,2]
[426053571,1782131546000,-554.01,0.00029589,2]
[426053573,1782131546000,-718.0,0.00029589,2]
[426053578,1782131546000,-666.78,0.00029589,2]
[426053569,1782131546000,-540.55,0.00029589,2]
[426053534,1782131546000,-500.0,0.00029589,2]
[426053568,1782131546000,-670.91,0.00029589,2]
[426053542,1782131546000,-617.49,0.00029589,2]
[426053541,1782131546000,-703.04,0.00029589,2]
[426053540,1782131546000,-531.43,0.00029589,2]
[426053544,1782131546000,-944.23,0.00029589,2]
[426053545,1782131546000,-500.0,0.00029589,2]
[426053546,1782131546000,-500.0,0.00029589,2]
[426053549,1782131546000,-856.58,0.00029589,2]
[426053550,1782131546000,-500.0,0.00029589,2]
[426053547,1782131546000,-500.0,0.00029589,2]
[426053543,1782131546000,-1040.83,0.00029589,2]
[426053551,1782131546000,-850.25,0.00029589,2]
[426053548,1782131546000,-500.0,0.00029589,2]
[426053539,1782131546000,-500.0,0.00029589,2]
[426053553,1782131546000,-584.59,0.00029589,2]
[426053561,1782131546000,-500.0,0.00029589,2]
[426053564,1782131546000,-500.0,0.00029589,2]
[426053558,1782131546000,-523.74,0.00029589,2]
[426053557,1782131546000,-500.0,0.00029589,2]
[426053559,1782131546000,-500.0,0.00029589,2]
[426053560,1782131546000,-464.85433115,0.00029589,2]
[426053566,1782131546000,-1046.3,0.00029589,2]
[426053554,1782131546000,-608.59,0.00029589,2]
[426053555,1782131546000,-500.0,0.00029589,2]
[426053563,1782131546000,-936.99,0.00029589,2]
[426053552,1782131546000,-500.0,0.00029589,2]
[426053562,1782131546000,-1501.08,0.00029589,2]
[426053556,1782131546000,-500.0,0.00029589,2]
[426053633,1782131547000,-500.0,0.00029589,2]
[426053636,1782131547000,-758.34,0.00029589,2]
[426053630,1782131547000,-500.0,0.00029589,2]
[426053632,1782131547000,-500.0,0.00029589,2]
[426053629,1782131547000,-635.95,0.00029589,2]
[426053631,1782131547000,-500.0,0.00029589,2]
[426053626,1782131547000,-739.67,0.00029589,2]
[426053628,1782131547000,-176.88,0.00029589,2]
[426053638,1782131547000,-500.0,0.00029589,2]
[426053635,1782131547000,-500.0,0.00029589,2]
[426053634,1782131547000,-501.26,0.00029589,2]
[426053639,1782131547000,-500.0,0.00029589,2]
[426053645,1782131547000,-500.0,0.00029589,2]
[426053641,1782131547000,-500.0,0.00029589,2]
[426053640,1782131547000,-186.10383184,0.00029589,2]
[426053644,1782131547000,-609.91726338,0.00029589,2]
[426053646,1782131547000,-500.0,0.00029589,2]
[426053643,1782131547000,-873.39,0.00029589,2]
[426053647,1782131547000,-500.0,0.00029589,2]
[426053648,1782131547000,-784.71,0.00029589,2]
[426053649,1782131547000,-1443.16,0.00029589,2]
[426053660,1782131547000,-500.0,0.00029589,2]
[426053651,1782131547000,-600.74,0.00029589,2]
[426053650,1782131547000,-500.0,0.00029589,2]
[426053627,1782131547000,-869.96,0.00029589,2]
[426053642,1782131547000,-940.86,0.00029589,2]
[426053637,1782131547000,-645.04498017,0.00029589,2]
[426053654,1782131547000,-1050.73,0.00029589,2]
[426053625,1782131547000,-500.0,0.00029589,2]
[426053599,1782131547000,-500.0,0.00029589,2]
[426053598,1782131547000,-617.25,0.00029589,2]
[426053600,1782131547000,-947.18,0.00029589,2]
[426053602,1782131547000,-500.0,0.00029589,2]
[426053613,1782131547000,-740.41,0.00029589,2]
[426053612,1782131547000,-500.0,0.00029589,2]
[426053601,1782131547000,-500.0,0.00029589,2]
[426053605,1782131547000,-1250.12,0.00029589,2]
[426053608,1782131547000,-1069.93,0.00029589,2]
[426053604,1782131547000,-500.0,0.00029589,2]
[426053606,1782131547000,-858.12,0.00029589,2]
[426053610,1782131547000,-788.02,0.00029589,2]
[426053622,1782131547000,-500.0,0.00029589,2]
[426053603,1782131547000,-524.23,0.00029589,2]
[426053607,1782131547000,-500.0,0.00029589,2]
[426053611,1782131547000,-521.74,0.00029589,2]
[426053614,1782131547000,-689.12,0.00029589,2]
[426053616,1782131547000,-500.0,0.00029589,2]
[426053617,1782131547000,-500.0,0.00029589,2]
[426053621,1782131547000,-4029.46,0.00029589,2]
[426053620,1782131547000,-500.0,0.00029589,2]
[426053619,1782131547000,-500.0,0.00029589,2]
[426053618,1782131547000,-879.63,0.00029589,2]
[426053623,1782131547000,-500.0,0.00029589,2]
[426053615,1782131547000,-3364.63,0.00029589,2]
[426053624,1782131547000,-500.0,0.00029589,2]
[426053609,1782131547000,-577.94,0.00029589,2]
[426053653,1782131547000,-500.0,0.00029589,2]
[426053681,1782131547000,-500.0,0.00029589,2]
[426053655,1782131547000,-636.07,0.00029589,2]
[426053691,1782131547000,-500.0,0.00029589,2]
[426053693,1782131547000,-500.0,0.00029589,2]
[426053688,1782131547000,-500.0,0.00029589,2]
[426053686,1782131547000,-562.61,0.00029589,2]
[426053689,1782131547000,-559.62,0.00029589,2]
[426053692,1782131547000,-500.0,0.00029589,2]
[426053687,1782131547000,-739.97,0.00029589,2]
[426053694,1782131547000,-451.72,0.00029589,2]
[426053695,1782131547000,-500.0,0.00029589,2]
[426053696,1782131547000,-500.0,0.00029589,2]
[426053697,1782131547000,-739.97,0.00029589,2]
[426053698,1782131547000,-3267.88,0.00029589,2]
[426053699,1782131547000,-500.0,0.00029589,2]
[426053700,1782131547000,-500.0,0.00029589,2]
[426053701,1782131547000,-500.0,0.00029589,2]
[426053704,1782131547000,-500.0,0.00029589,2]
[426053703,1782131547000,-816.43,0.00029589,2]
[426053702,1782131547000,-905.07,0.00029589,2]
[426053708,1782131547000,-1352.1,0.00029589,2]
[426053705,1782131547000,-558.4,0.00029589,2]
[426053710,1782131547000,-1369.37,0.00029589,2]
[426053707,1782131547000,-500.0,0.00029589,2]
[426053711,1782131547000,-500.0,0.00029589,2]
[426053706,1782131547000,-500.0,0.00029589,2]
[426053652,1782131547000,-3639.77,0.00029589,2]
[426053690,1782131547000,-500.0,0.00029589,2]
[426053685,1782131547000,-700.09,0.00029589,2]
[426053709,1782131547000,-827.96,0.00029589,2]
[426053680,1782131547000,-500.0,0.00029589,2]
[426053684,1782131547000,-500.0,0.00029589,2]
[426053658,1782131547000,-700.32,0.00029589,2]
[426053656,1782131547000,-510.38,0.00029589,2]
[426053657,1782131547000,-500.0,0.00029589,2]
[426053659,1782131547000,-500.0,0.00029589,2]
[426053661,1782131547000,-945.27,0.00029589,2]
[426053663,1782131547000,-541.49,0.00029589,2]
[426053664,1782131547000,-986.53,0.00029589,2]
[426053666,1782131547000,-500.0,0.00029589,2]
[426053671,1782131547000,-500.0,0.00029589,2]
[426053668,1782131547000,-1014.22,0.00029589,2]
[426053665,1782131547000,-590.33,0.00029589,2]
[426053667,1782131547000,-500.0,0.00029589,2]
[426053662,1782131547000,-526.09,0.00029589,2]
[426053669,1782131547000,-500.0,0.00029589,2]
[426053670,1782131547000,-694.68,0.00029589,2]
[426053677,1782131547000,-846.46,0.00029589,2]
[426053678,1782131547000,-500.0,0.00029589,2]
[426053679,1782131547000,-928.29,0.00029589,2]
[426053712,1782131547000,-500.0,0.00029589,2]
[426053676,1782131547000,-534.88,0.00029589,2]
[426053682,1782131547000,-500.0,0.00029589,2]
[426053674,1782131547000,-408.96,0.00029589,2]
[426053672,1782131547000,-500.0,0.00029589,2]
[426053683,1782131547000,-571.32,0.00029589,2]
[426053673,1782131547000,-696.96,0.00029589,2]
[426053675,1782131547000,-500.0,0.00029589,2]
[426053735,1782131548000,-596.6,0.00029589,2]
[426053734,1782131548000,-500.0,0.00029589,2]
[426053749,1782131548000,-2693.07,0.00029589,2]
[426053738,1782131548000,-500.0,0.00029589,2]
[426053739,1782131548000,-500.0,0.00029589,2]
[426053743,1782131548000,-500.0,0.00029589,2]
[426053741,1782131548000,-537.79132161,0.00029589,2]
[426053740,1782131548000,-500.0,0.00029589,2]
[426053747,1782131548000,-514.12,0.00029589,2]
[426053746,1782131548000,-344.6,0.00029589,2]
[426053744,1782131548000,-542.05,0.00029589,2]
[426053748,1782131548000,-500.0,0.00029589,2]
[426053745,1782131548000,-500.0,0.00029589,2]
[426053750,1782131548000,-733.03,0.00029589,2]
[426053752,1782131548000,-566.57,0.00029589,2]
[426053737,1782131548000,-631.55,0.00029589,2]
[426053754,1782131548000,-619.74,0.00029589,2]
[426053742,1782131548000,-512.67,0.00029589,2]
[426053736,1782131548000,-626.46,0.00029589,2]
[426053726,1782131548000,-3183.96,0.00029589,2]
[426053729,1782131548000,-500.0,0.00029589,2]
[426053758,1782131548000,-500.0,0.00029589,2]
[426053714,1782131548000,-500.0,0.00029589,2]
[426053713,1782131548000,-151.28,0.00029589,2]
[426053716,1782131548000,-1075.88,0.00029589,2]
[426053715,1782131548000,-500.0,0.00029589,2]
[426053717,1782131548000,-806.98,0.00029589,2]
[426053718,1782131548000,-500.0,0.00029589,2]
[426053719,1782131548000,-500.0,0.00029589,2]
[426053725,1782131548000,-500.0,0.00029589,2]
[426053720,1782131548000,-500.0,0.00029589,2]
[426053723,1782131548000,-500.0,0.00029589,2]
[426053722,1782131548000,-500.0,0.00029589,2]
[426053724,1782131548000,-314.88541894,0.00029589,2]
[426053721,1782131548000,-500.0,0.00029589,2]
[426053727,1782131548000,-319.14238888,0.00029589,2]
[426053731,1782131548000,-500.0,0.00029589,2]
[426053730,1782131548000,-500.0,0.00029589,2]
[426053728,1782131548000,-519.81,0.00029589,2]
[426053733,1782131548000,-500.0,0.00029589,2]
[426053732,1782131548000,-500.0,0.00029589,2]
[426053753,1782131548000,-500.0,0.00029589,2]
[426053757,1782131548000,-1000.0,0.00029589,2]
[426053756,1782131548000,-500.0,0.00029589,2]